fUSD/lending_fUSD_20260112
["ID","MTS","AMOUNT","RATE_DAILY","PERIOD"]
[401399560,1768182644407,-150.14345101,0.00017973,2]
[401399561,1768182644417,-501.55998933,0.00017973,2]
[401399562,1768182644426,-287.22425623,0.00017973,2]
[401399563,1768182644435,-500.66306974,0.00017973,2]
[401399564,1768182644445,-501.04325256,0.00017973,2]
[401399565,1768182644454,-500.0,0.00017973,2]
[401399566,1768182644463,-500.6591269,0.00017973,2]
[401399567,1768182644472,-502.26160847,0.00017973,2]
[401399568,1768182644482,-500.0,0.00017973,2]
[401399569,1768182644491,-502.16911238,0.00017973,2]
[401399570,1768182644500,-500.0,0.00017973,2]
[401399571,1768182644510,-500.0,0.00017973,2]
[401399572,1768182644520,-195.36614994,0.00017973,2]
[401399573,1768182644529,-500.98638061,0.00017973,2]
[401399574,1768182644538,-501.13067512,0.00017973,2]
[401399575,1768182644547,-168.88753122,0.00017973,2]
[401399576,1768182644557,-501.48110203,0.00017973,2]
[401399577,1768182644567,-429.25913085,0.00017973,2]
[401399578,1768182644576,-578.39698107,0.00017973,2]
[401399579,1768182644586,-579.28590279,0.00017973,2]
[401399580,1768182644595,-500.36446378,0.00017973,2]
[401399581,1768182644606,-501.23660196,0.00017973,2]
[401399582,1768182644616,-500.0,0.00017973,2]
[401399583,1768182644626,-500.20711909,0.00017973,2]
[401399584,1768182644637,-500.32439138,0.00017973,2]
[401399585,1768182644647,-500.0,0.00017973,2]
[401399586,1768182644657,-501.12006005,0.00017973,2]
[401399587,1768182644667,-500.62008984,0.00017973,2]
[401399588,1768182644676,-500.0,0.00017973,2]
[401399589,1768182644685,-500.26680132,0.00017973,2]
[401399590,1768182644695,-500.26933792,0.00017973,2]
[401399591,1768182644705,-250.49342089,0.00017973,2]
[401399595,1768182645770,-273.60000004,0.00017041,2]
[401399596,1768182645800,-388.34999996,0.00017041,2]
[401399597,1768182645810,-179.28,0.00017178,2]
[401399598,1768182645819,-467.15,0.00017178,2]
[401399599,1768182645829,-260.15495067,0.00017178,2]
[401399600,1768182645844,-296.65504933,0.00017178,2]
[401399601,1768182645854,-77.71486002,0.00017973,2]
[401399602,1768182645865,-172.91721329,0.00017973,2]
[401399603,1768182645874,-500.0,0.00017973,2]
[401399604,1768182645883,-127.78178258,0.00017973,2]
[401399605,1768182646135,-151.0,0.00015565,2]
[401399606,1768182646145,-151.0,0.00015565,2]
[401399607,1768182646154,-418.56008335,0.00017973,2]
[401399608,1768182646163,-500.0,0.00017973,2]
[401399609,1768182646173,-500.52878473,0.00017973,2]
[401399610,1768182646182,-501.3094186,0.00017973,2]
[401399611,1768182646191,-500.4995325,0.00017973,2]
[401399612,1768182646200,-398.43746446,0.00017973,2]
[401399613,1768182646209,-501.63007717,0.00017973,2]
[401399614,1768182646218,-502.08593296,0.00017973,2]
[401399615,1768182646227,-182.98795124,0.00017973,2]
[401399616,1768182646236,-502.57098628,0.00017973,2]
[401399617,1768182646246,-501.18527996,0.00017973,2]
[401399618,1768182646255,-500.68517053,0.00017973,2]
[401399619,1768182646264,-500.0,0.00017973,2]
[401399620,1768182646274,-502.64882005,0.00017973,2]
[401399621,1768182646283,-165.4326737,0.00017973,2]
[401399622,1768182646292,-501.49481013,0.00017973,2]
[401399623,1768182646302,-555.20912936,0.00017973,2]
[401399624,1768182646311,-501.40107324,0.00017973,2]
[401399625,1768182646321,-208.19174647,0.00017973,2]
[401399626,1768182646330,-19516.53425558,0.00017973,2]
[401399627,1768182646360,-3334.19286682,0.00017973,2]
[401399628,1768182646371,-38423.7779237,0.00017973,2]
[401399629,1768182646383,-435.85831543,0.00017973,2]
[401399630,1768182646395,-14827.20269495,0.00017973,2]
[401399631,1768182646410,-381.24209745,0.00017973,2]
[401399632,1768182646421,-264.77834775,0.00017973,2]
[401399633,1768182646432,-986.79100016,0.00017973,2]
[401399634,1768182646443,-311.95472696,0.00017973,2]
[401399635,1768182689084,151.0,0.00027397,120]
[401399636,1768182696183,151.0,0.00027397,120]
[401399637,1768182706082,151.0,0.00027397,120]
[401399638,1768182713009,151.0,0.00027397,120]
[401399639,1768182720406,151.0,0.00027397,120]
[401399642,1768182727776,151.0,0.00027397,120]
[401399643,1768182734654,151.0,0.00027397,120]
[401399644,1768182749332,151.0,0.00027397,120]
[401399645,1768182757987,151.0,0.00027397,120]
[401399646,1768182766825,151.0,0.00027397,120]
[401399647,1768182797028,270.72,8.436e-05,2]
[401399648,1768182797227,270.72,8.863e-05,2]
[401399649,1768182797426,270.72,9.289e-05,2]
[401399650,1768182797638,270.72,9.716e-05,2]
[401399651,1768182797839,270.72,0.00010142,2]
[401399652,1768182798037,270.72,0.00010569,2]
[401399653,1768182798233,270.72,0.00010995,2]
[401399654,1768182798435,270.72,0.00011422,2]
[401399655,1768182798646,270.72,0.00011849,2]
[401399656,1768182798865,270.72,0.00012275,2]
[401399657,1768182799066,270.72,0.00012702,2]
[401399658,1768182799767,270.72,0.00013128,2]
[401399659,1768182799845,270.72,0.00013555,2]
[401399660,1768182800517,700.0,0.000139,5]
[401399661,1768182837618,700.0,0.000139,5]
[401399662,1768183011997,10000.0,0.00013698,2]
[401399663,1768183022777,0.01,0.00013698,2]
[401399664,1768183024702,-250.01361838,0.00013698,2]
[401399665,1768183026559,-316.10852646,0.00013698,2]
[401399666,1768183030531,-412.02256426,0.00013698,2]
[401399667,1768183034883,-504.87620642,0.00013698,2]
[401399668,1768183037636,-170.10611626,0.00013698,2]
[401399669,1768183039499,-379.99487605,0.00013698,2]
[401399670,1768183041000,-230.60288473,0.00013698,2]
[401399671,1768183045704,-214.7707599,0.00013698,2]
[401399672,1768183048379,-514.39939241,0.00013698,2]
[401399673,1768183053254,-389.27953315,0.00013698,2]
[401399674,1768183054891,-514.45789198,0.00013698,2]
[401399675,1768183056177,-358.93138377,0.00013698,2]
[401399676,1768183058878,-225.53173516,0.00013698,2]
[401399677,1768183060439,-315.00656508,0.00013698,2]
[401399678,1768183061827,-327.73237129,0.00013698,2]
[401399679,1768183063219,-256.4178067,0.00013698,2]
[401399680,1768183065429,-203.20335228,0.00013698,2]
[401399681,1768183066666,-461.71282103,0.00013698,2]
[401399682,1768183068954,-397.7967996,0.00013698,2]
[401399683,1768183070892,-350.32548869,0.00013698,2]
[401399684,1768183075241,-551.50915005,0.00013698,2]
[401399685,1768183077010,-285.11861132,0.00013698,2]
[401399686,1768183079015,151.0,0.00027397,120]
[401399687,1768183079670,-258.6558289,0.00013698,2]
[401399688,1768183080627,221.94428365,0.00013924,5]
[401399689,1768183080672,1093.40683627,0.00013924,5]
[401399690,1768183081729,-561.36394466,0.00013698,2]
[401399691,1768183086008,-221.11452198,0.00013698,2]
[401399692,1768183087178,-1328.93724949,0.00013698,2]
[401399693,1768183087206,-314.71593052,0.00013772,2]
[401399694,1768183087234,-1492.93771195,0.00013845,2]
[401399695,1768183087260,-300.0,0.0001388,2]
[401399696,1768183087286,-1916.60338084,0.00013881,2]
[401399697,1768183087313,-170.82140133,0.00013881,2]
[401399698,1768183087338,-170.82140133,0.00013881,2]
[401399699,1768183087365,-1200.0,0.00013923,2]
[401399700,1768183087389,-300.0,0.00013923,2]
[401399701,1768183087420,-500.0,0.00013924,2]
[401399702,1768183087444,-560.24265202,0.00013924,2]
[401399703,1768183087468,-400.95252733,0.00013924,2]
[401399704,1768183087496,-500.0,0.00013924,2]
[401399705,1768183087525,-470.45577192,0.00013924,2]
[401399706,1768183087562,-190373.51197327,0.00013925,2]
[401399707,1768183088464,-203.09776476,0.00013825,2]
[401399708,1768183090780,151.0,0.00027397,120]
[401399709,1768183099190,151.0,0.00027397,120]
[401399710,1768183109407,151.0,0.00027397,120]
[401399711,1768183116598,151.0,0.00027397,120]
[401399712,1768183124240,151.0,0.00027397,120]
[401399713,1768183131324,151.0,0.00027397,120]
[401399714,1768183136678,5251.14998622,0.00012616,2]
[401399715,1768183141704,151.0,0.00027397,120]
[401399716,1768183148345,-294.27108077,0.00012616,2]
[401399717,1768183150432,-329.89388374,0.00012616,2]
[401399718,1768183152234,151.0,0.00027397,120]
[401399719,1768183152528,-312.30184415,0.00012616,2]
[401399720,1768183154023,-242.61970597,0.00012616,2]
[401399721,1768183157482,-374.66500799,0.00012616,2]
[401399722,1768183158902,151.0,0.00027397,120]
[401399723,1768183160665,-185.30165895,0.00012616,2]
[401399724,1768183164580,-248.11986185,0.00012616,2]
[401399725,1768183166212,151.0,0.00027397,120]
[401399726,1768183168269,-200.10748678,0.00012616,2]
[401399727,1768183173984,-207.1827983,0.00012616,2]
[401399728,1768183175036,-242.82934068,0.00012616,2]
[401399729,1768183177549,-280.02587259,0.00012616,2]
[401399730,1768183177636,151.0,0.00027397,120]
[401399731,1768183180500,-265.0,0.00012616,2]
[401399732,1768183182600,-174.6720109,0.00012616,2]
[401399733,1768183184878,-364.79116376,0.00012616,2]
[401399734,1768183186621,-210.68113283,0.00012616,2]
[401399735,1768183188441,-160.16809642,0.00012616,2]
[401399736,1768183191133,-235.66563197,0.00012616,2]
[401399737,1768183193259,-298.64658488,0.00012616,2]
[401399738,1768183208834,-121.90685125,0.00012616,2]
[401399739,1768183208857,-117.34057516,0.00012616,2]
[401399740,1768183213301,-182.35978323,0.00012616,2]
[401399741,1768183213325,-81.9745848,0.00012616,2]
[401399742,1768183236363,198.61,0.00011349,2]
[401399743,1768183237339,-171.0254152,0.00012616,2]
[401399744,1768183258424,151.0,0.00012616,2]
[401399745,1768183258478,151.0,0.00012616,2]
[401399746,1768183298669,64.3145848,0.00012616,2]
[401399747,1768183298696,662.66,0.00012616,2]
[401399748,1768183298721,300.0,0.00012616,2]
[401399749,1768183298747,1135.16966342,0.00012616,2]
[401399750,1768183298771,300.0,0.00012616,2]
[401399751,1768183298796,300.0,0.00012616,2]
[401399752,1768183298821,188.0,0.00012616,2]
[401399753,1768183298847,275.0,0.00012616,2]
[401399754,1768183298872,1450.96617706,0.00012616,2]
[401399755,1768183298898,165.39472428,0.00012616,2]
[401399756,1768183298924,385.2974996,0.00012616,2]
[401399757,1768183298949,465.25171935,0.00012616,2]
[401399758,1768183298975,500.0,0.00012616,2]
[401399759,1768183299000,500.0,0.00012616,2]
[401399760,1768183299031,500.0,0.00012616,2]
[401399761,1768183299056,278.93951857,0.00012616,2]
[401399762,1768183299081,334.27041242,0.00012616,2]
[401399763,1768183299106,281.136297,0.00012616,2]
[401399764,1768183305401,-193.7836888,0.00012616,2]
[401399765,1768183305481,-1719.8157147,0.00012616,2]
[401399766,1768183308865,-257.09814938,0.00013647,2]
[401399767,1768183310249,-299.84871669,0.00013647,2]
[401399768,1768183310609,520.06,0.00012,2]
[401399769,1768183313368,-460.28866596,0.00013647,2]
[401399770,1768183316330,-276.61697368,0.00013647,2]
[401399771,1768183318544,-500.0,0.00013647,2]
[401399772,1768183319995,-318.57736384,0.00013647,2]
[401399773,1768183324951,-326.08013045,0.00013647,2]
[401399774,1768183324974,-31.05613688,0.00013647,2]
[401399775,1768183328978,3177.641373,7.945e-05,2]
[401399776,1768183329835,-143.76786312,0.00013647,2]
[401399777,1768183329858,-45.28635618,0.00013699,2]
[401399778,1768183332033,-177.26770354,0.00013699,2]
[401399779,1768183335724,-110.92594028,0.00013699,2]
[401399780,1768183335748,-458.50405972,0.00013745,2]
[401399782,1768183629946,389.0,0.000202,30]
[401399783,1768183632229,1400.0,0.000139,5]
[401399784,1768183640314,-21.06324028,0.00013745,2]
[401399785,1768183640341,-151.0,0.00013745,2]
[401399786,1768183640363,-406.51142643,0.00013824,2]
[401399787,1768183651340,151.0,0.00027397,120]
[401399788,1768183653536,-793.48857357,0.00013824,2]
[401399789,1768183653557,-150.0,0.00013824,2]
[401399790,1768183653578,-168.73784236,0.00013824,2]
[401399791,1768183660266,151.0,0.00027397,120]
[401399792,1768183668821,151.0,0.00027397,120]
[401399793,1768183675907,151.0,0.00027397,120]
[401399794,1768183683542,151.0,0.00027397,120]
[401399795,1768183690964,151.0,0.00027397,120]
[401399796,1768183698154,151.0,0.00027397,120]
[401399797,1768183705356,151.0,0.00027397,120]
[401399798,1768183712927,151.0,0.00027397,120]
[401399799,1768183720080,151.0,0.00027397,120]
[401399800,1768183729715,151.0,0.00027397,120]
[401399801,1768183737980,151.0,0.00027397,120]
[401399802,1768183745259,151.0,0.00027397,120]
[401399803,1768183752801,151.0,0.00027397,120]
[401399804,1768183792835,-309.18516578,0.00013781,2]
[401399805,1768183794853,-300.0,0.00013781,2]
[401399806,1768183797257,-1049.17514544,0.00013781,2]
[401399807,1768183798673,-252.177763,0.00013781,2]
[401399808,1768183800838,-151.39680068,0.00013781,2]
[401399809,1768183802337,-363.41558655,0.0001378,2]
[401399810,1768183806235,-527.97186034,0.0001378,2]
[401399811,1768183809372,-308.61255311,0.0001378,2]
[401399812,1768183809404,-168.97270751,0.00013781,2]
[401399813,1768183811356,-189.01438501,0.00013781,2]
[401399814,1768183815079,-209.66521579,0.00013771,2]
[401399815,1768183816646,-208.48248306,0.00013771,2]
[401399816,1768183818681,-311.81946759,0.00013771,2]
[401399817,1768183821036,-345.87696134,0.00013781,2]
[401399818,1768183822582,-238.94714755,0.00013781,2]
[401399819,1768183825798,-259.07070953,0.00013781,2]
[401399820,1768183827510,-254.09289102,0.00013724,2]
[401399821,1768183827535,-67.2552976,0.00013724,2]
[401399822,1768183829647,335.07140781,0.00013671,2]
[401399823,1768183830063,-186.83759342,0.00013724,2]
[401399824,1768183830092,-18.57782371,0.00013724,2]
[401399831,1768183831767,-186.07684562,0.00013724,2]
[401399832,1768183831778,-543.43598466,0.00013781,2]
[401399833,1768183831823,-605.71259571,0.00013781,2]
[401399835,1768183831835,-449.66614174,0.00013781,2]
[401399839,1768183831868,-557.16324427,0.00013781,2]
[401399842,1768183831884,-1164.04105498,0.00013781,2]
[401399847,1768183831896,-1168.18354245,0.00013781,2]
[401399850,1768183831908,-257.87596969,0.00013781,2]
[401399853,1768183831919,-69799.97694503,0.00013781,2]
[401399858,1768183831930,-471.29454,0.00013781,2]
[401399861,1768183831946,-576.16,0.00013781,2]
[401399863,1768183831959,-259.39015822,0.00013781,2]
[401399867,1768183831979,-712.3594412,0.00013781,2]
[401399941,1768183833032,-238.42049879,0.00013781,2]
[401399942,1768183835120,-162.11424412,0.00013781,2]
[401399963,1768183838152,-335.07140779,0.00013698,2]
[401399965,1768183838162,-10285.05991564,0.00013781,2]
[401399967,1768183838173,-9591.33551341,0.00013781,2]
[401399970,1768183838184,-417.656216,0.00013781,2]
[401399972,1768183838196,-852.37970343,0.00013781,2]
[401399990,1768183838350,-916.14782113,0.00013781,2]
[401400141,1768183839884,-214.17273217,0.0001378,2]
[401400143,1768183839894,-462.97329412,0.0001378,2]
[401400145,1768183839903,-198.7804246,0.0001378,2]
[401400147,1768183839912,-2275.6610544,0.00013781,2]
[401400151,1768183839939,-366.07666003,0.00013781,2]
[401400157,1768183839994,-895066.07196926,0.00013781,2]
[401400158,1768183840003,-300.0,0.00013824,2]
[401400159,1768183840013,-150.0,0.00013824,2]
[401400160,1768183840022,-170.7108,0.00013825,2]
[401400161,1768183840032,-6215.0375,0.00013825,2]
[401400162,1768183840041,-1000.0,0.00013825,2]
[401400163,1768183840050,-2156.4641,0.00013825,2]
[401400164,1768183840060,-2911.3067,0.00013825,2]
[401400165,1768183840069,-293.8261,0.00013825,2]
[401400166,1768183840079,-10495.2020456,0.00013874,2]
[401400167,1768183840088,-232.41861165,0.00013881,2]
[401400169,1768183840097,-234.85694137,0.00013881,2]
[401400171,1768183840107,-2995.17829643,0.00013881,2]
[401400173,1768183840117,-4195.66454003,0.00013881,2]
[401400175,1768183840127,-3257.83680377,0.00013881,2]
[401400177,1768183840137,-152.6064555,0.00013925,2]
[401400179,1768183840146,-500.0,0.00013925,2]
[401400180,1768183840156,-500.0,0.00013925,2]
[401400181,1768183840166,-437.33024339,0.00013925,2]
[401400182,1768183840175,-270.72,0.00013981,2]
[401400183,1768183840184,-200.0,0.00014178,2]
[401400184,1768183840194,-183.63,0.00014213,2]
[401400185,1768183840204,-254.09289098,0.00014321,2]
[401400186,1768183840214,-254.09289098,0.00014321,2]
[401400187,1768183840223,-4195.66453999,0.00014328,2]
[401400188,1768183840232,-3257.83680369,0.00014328,2]
[401400189,1768183840242,-150.0,0.00014363,2]
[401400190,1768183840251,-9999.99,0.00014408,2]
[401400191,1768183840261,-20014.37,0.00014408,2]
[401400192,1768183840271,-999.99,0.00014408,2]
[401400193,1768183840279,-270.72,0.00014408,2]
[401400194,1768183840290,-1101.0,0.00014543,2]
[401400195,1768183840301,-5549.43,0.00014543,2]
[401400196,1768183840311,-150.99,0.00014543,2]
[401400197,1768183840321,-839.72,0.00014543,2]
[401400198,1768183840331,-299.99,0.00014543,2]
[401400199,1768183840339,-1000.0,0.00014557,2]
[401400200,1768183840349,-150.99,0.00014557,2]
[401400201,1768183840358,-4195.66453999,0.00014774,2]
[401400202,1768183840367,-3257.83680369,0.00014774,2]
[401400203,1768183840376,-270.72,0.00014835,2]
[401400204,1768183840388,-254.09289098,0.00014917,2]
[401400205,1768183840397,-254.09289098,0.00014917,2]
[401400206,1768183840407,-180.60937,0.00014929,2]
[401400207,1768183840416,-255.0,0.00014944,2]
[401400208,1768183840426,-300.6955857,0.00015012,2]
[401400209,1768183840435,-141501.9613211,0.00015022,2]
[401400210,1768183840444,-250.0,0.00015119,2]
[401400211,1768183840455,-195.0,0.00015119,2]
[401400212,1768183840464,-195.0,0.00015119,2]
[401400213,1768183840473,-302.43421383,0.00015119,2]
[401400214,1768183840482,-732.15495295,0.00015119,2]
[401400215,1768183840491,-2552.74469156,0.00015119,2]
[401400216,1768183840501,-295.98730694,0.00015119,2]
[401400217,1768183840510,-250.0,0.00015119,2]
[401400218,1768183840519,-1680.0,0.00015158,2]
[401400219,1768183840528,-321.10065421,0.00015206,2]
[401400220,1768183840538,-4195.66453999,0.00015221,2]
[401400221,1768183840547,-3257.83680369,0.00015221,2]
[401400222,1768183840556,-270.72,0.00015261,2]
[401400223,1768183840565,-1101.0,0.00015308,2]
[401400224,1768183840575,-151.0,0.00015559,2]
[401400225,1768183840584,-151.0,0.00015559,2]
[401400226,1768183840593,-151.0,0.00015564,2]
[401400227,1768183840602,-151.0,0.00015564,2]
[401400228,1768183840611,-151.0,0.00015578,2]
[401400229,1768183840620,-151.0,0.00015578,2]
[401400230,1768183840629,-4195.66453999,0.00015667,2]
[401400231,1768183840638,-3257.83680369,0.00015667,2]
[401400232,1768183840648,-270.72,0.00015688,2]
[401400233,1768183840658,-325.94377091,0.000159,2]
[401400234,1768183840667,-1000.0,0.00015918,2]
[401400235,1768183840676,-970.45609678,0.0001605,2]
[401400236,1768183840686,-622.21685667,0.00016073,2]
[401400237,1768183840695,-661.95,0.00016082,2]
[401400238,1768183840704,-661.95,0.00016082,2]
[401400239,1768183840713,-661.95,0.00016082,2]
[401400240,1768183840723,-661.95,0.00016082,2]
[401400241,1768183840732,-661.95,0.00016082,2]
[401400242,1768183840741,-4195.66453999,0.00016114,2]
[401400243,1768183840751,-3257.83680369,0.00016114,2]
[401400244,1768183840760,-270.72,0.00016114,2]
[401400245,1768183840769,-661.95,0.00016141,2]
[401400246,1768183840778,-924.87,0.00016186,2]
[401400247,1768183840788,-150.0,0.000162,2]
[401400248,1768183840797,-150.0,0.000162,2]
[401400249,1768183840807,-150.0,0.000162,2]
[401400250,1768183840816,-150.0,0.000162,2]
[401400251,1768183840826,-154.55098776,0.000162,2]
[401400252,1768183840835,-150.0,0.000162,2]
[401400253,1768183840845,-155.70825826,0.000162,2]
[401400254,1768183840855,-150.0,0.000162,2]
[401400255,1768183840864,-151.66154832,0.000162,2]
[401400256,1768183840874,-150.0,0.000162,2]
[401400257,1768183840883,-150.0,0.000162,2]
[401400258,1768183840893,-298.95,0.00016212,2]
[401400259,1768183840903,-154.55098776,0.00016218,2]
[401400260,1768183840912,-154.55098776,0.00016236,2]
[401400261,1768183840921,-154.55098776,0.00016255,2]
[401400262,1768183840931,-154.55098776,0.00016273,2]
[401400263,1768183840940,-154.55098776,0.00016291,2]
[401400264,1768183840950,-154.55098776,0.00016309,2]
[401400265,1768183840959,-154.55098776,0.00016327,2]
[401400266,1768183840969,-154.55098776,0.00016345,2]
[401400267,1768183840978,-556.81,0.00016356,2]
[401400268,1768183841268,-179.28,0.00016356,2]
[401400269,1768183841302,-467.15,0.00016356,2]
[401400270,1768183841311,-556.81,0.00016356,2]
[401400271,1768183841320,-179.28,0.00016356,2]
[401400272,1768183841331,-467.15,0.00016356,2]
[401400273,1768183841342,-179.28,0.00016356,2]
[401400274,1768183841351,-556.81,0.00016356,2]
[401400275,1768183841361,-467.15,0.00016356,2]
[401400276,1768183841370,-154.55098776,0.00016364,2]
[401400277,1768183841379,-12287.4654276,0.00016373,2]
[401400278,1768183841393,-1000.0,0.00016377,2]
[401400279,1768183841403,-154.55098776,0.00016382,2]
[401400280,1768183841413,-154.55098776,0.000164,2]
[401400281,1768183841423,-843.0,0.000164,2]
[401400282,1768183841434,-180.60937,0.00016415,2]
[401400283,1768183841443,-154.55098776,0.00016418,2]
[401400284,1768183841453,-154.55098776,0.00016436,2]
[401400285,1768183841465,-226.66,0.00016438,2]
[401400286,1768183841475,-151.0,0.00016438,2]
[401400287,1768183841485,-154.55098776,0.00016455,2]
[401400288,1768183841495,-154.55098776,0.00016473,2]
[401400289,1768183841506,-154.55098776,0.00016491,2]
[401400290,1768183841526,-150.0,0.000165,2]
[401400291,1768183841538,-6727.0,0.00016507,2]
[401400292,1768183841548,-154.55098776,0.00016509,2]
[401400293,1768183841560,-1000.0,0.00016515,2]
[401400294,1768183841570,-154.55098776,0.00016527,2]
[401400295,1768183841580,-270.72,0.00016541,2]
[401400296,1768183841590,-154.55098776,0.00016545,2]
[401400297,1768183841600,-150.0,0.0001656,2]
[401400298,1768183841610,-4195.66453999,0.0001656,2]
[401400299,1768183841620,-3257.83680369,0.0001656,2]
[401400300,1768183841630,-154.55098776,0.00016564,2]
[401400301,1768183841641,-154.55098776,0.00016582,2]
[401400302,1768183841650,-154.55098776,0.000166,2]
[401400303,1768183841662,-154.55098776,0.00016618,2]
[401400304,1768183841671,-500.0,0.00016633,2]
[401400305,1768183841681,-152.17779461,0.00016633,2]
[401400306,1768183841690,-500.0,0.00016633,2]
[401400307,1768183841700,-500.0,0.00016633,2]
[401400308,1768183841710,-157.91348947,0.00016633,2]
[401400309,1768183841729,-153.00893643,0.00016633,2]
[401400310,1768183841739,-154.83288335,0.00016633,2]
[401400311,1768183841748,-154.55098776,0.00016636,2]
[401400312,1768183841758,-482.99,0.00016642,2]
[401400313,1768183841768,-150.0,0.0001665,2]
[401400314,1768183841778,-150.0,0.0001665,2]
[401400315,1768183841788,-150.0,0.0001665,2]
[401400316,1768183841798,-154.55098776,0.00016655,2]
[401400317,1768183841807,-154.55098776,0.00016673,2]
[401400318,1768183841817,-2351.0,0.00016674,2]
[401400319,1768183841826,-500.0,0.00016688,2]
[401400320,1768183841837,-500.0,0.00016688,2]
[401400321,1768183841847,-531.25061472,0.00016688,2]
[401400322,1768183841857,-154.55098776,0.00016691,2]
[401400323,1768183841866,-154.55098776,0.00016709,2]
[401400324,1768183841876,-159.73,0.00016712,2]
[401400325,1768183841885,-999.0,0.00016716,3]
[401400326,1768183841900,-154.55098776,0.00016727,2]
[401400327,1768183841912,-224.95,0.00016736,2]
[401400328,1768183841922,-661.95,0.00016741,2]
[401400329,1768183841932,-562.52057336,0.00016743,2]
[401400330,1768183841942,-500.0,0.00016743,2]
[401400331,1768183841953,-154.55098776,0.00016745,2]
[401400332,1768183841964,-300.0,0.0001675,2]
[401400333,1768183841974,-150.0,0.0001675,2]
[401400334,1768183841984,-154.55098776,0.00016764,2]
[401400335,1768183841994,-154.55098776,0.00016782,2]
[401400336,1768183842004,-3240.0,0.00016789,2]
[401400337,1768183842014,-490.0,0.00016795,2]
[401400338,1768183842024,-500.0,0.00016797,2]
[401400339,1768183842035,-202.87382707,0.00016799,2]
[401400340,1768183842044,-160.92556746,0.00016799,2]
[401400341,1768183842054,-204.15967263,0.00016799,2]
[401400342,1768183842064,-150.0,0.000168,2]
[401400343,1768183842074,-150.0,0.000168,2]
[401400344,1768183842088,-154.55098776,0.000168,2]
[401400345,1768183842098,-150.0,0.000168,2]
[401400346,1768183842108,-154.55098776,0.00016818,2]
[401400347,1768183842117,-154.55098776,0.00016836,2]
[401400348,1768183842127,-500.0,0.00016852,2]
[401400349,1768183842137,-154.55098776,0.00016855,2]
[401400350,1768183842147,-154.55098776,0.00016873,2]
[401400351,1768183842157,-556.81,0.00016878,2]
[401400352,1768183842167,-179.28,0.00016878,2]
[401400353,1768183842176,-467.15,0.00016878,2]
[401400354,1768183842186,-154.55098776,0.00016891,2]
[401400355,1768183842196,-2800.0,0.000169,6]
[401400356,1768183842205,-500.0,0.00016907,2]
[401400357,1768183842215,-154.55098776,0.00016909,2]
[401400358,1768183842225,-204.65466932,0.00016916,2]
[401400359,1768183842235,-150.0,0.0001692,2]
[401400360,1768183842246,-5931.22,0.00016922,2]
[401400361,1768183842260,-9999.99,0.00016922,2]
[401400362,1768183842271,-154.55098776,0.00016927,2]
[401400363,1768183842282,-154.55098776,0.00016945,2]
[401400364,1768183842293,-500.0,0.00016962,2]
[401400365,1768183842304,-154.55098776,0.00016964,2]
[401400366,1768183842314,-154.55098776,0.00016982,2]
[401400367,1768183842324,-154.55098776,0.00017,2]
[401400368,1768183842335,-4195.66453999,0.00017007,2]
[401400369,1768183842345,-3257.83680369,0.00017007,2]
[401400370,1768183842356,-500.0,0.00017017,2]
[401400371,1768183842367,-154.55098776,0.00017018,2]
[401400372,1768183842377,-903.0,0.00017025,2]
[401400373,1768183842391,-154.55098776,0.00017036,2]
[401400374,1768183842401,-661.95,0.00017041,2]
[401400376,1768183842413,-154.55098776,0.00017055,2]
[401400379,1768183842423,-2341.7961132,0.00017069,2]
[401400381,1768183842435,-500.0,0.00017071,2]